fUSD/lending_fUSD_20250720
["ID","MTS","AMOUNT","RATE_DAILY","PERIOD"]
[373456026,1753014674752,-2174.54,0.00019726,2]
[373456027,1753014674760,-797.31,0.00019726,2]
[373456028,1753014674769,-1022.195767,0.00019726,2]
[373456029,1753014674778,-480.0,0.00019726,2]
[373456030,1753014674787,-663.69,0.00019726,2]
[373456031,1753014674796,-480.0,0.00019726,2]
[373456032,1753014674805,-616.09,0.00019726,2]
[373456033,1753014674814,-480.0,0.00019726,2]
[373456034,1753014674823,-1284.099981,0.00019726,2]
[373456035,1753014674832,-1246.634372,0.00019726,2]
[373456036,1753014674841,-480.0,0.00019726,2]
[373456037,1753014674850,-664.53,0.00019726,2]
[373456038,1753014674859,-480.0,0.00019726,2]
[373456039,1753014674868,-1646.34,0.00019726,2]
[373456040,1753014674877,-480.0,0.00019726,2]
[373456041,1753014674886,-480.0,0.00019726,2]
[373456042,1753014674896,-480.0,0.00019726,2]
[373456043,1753014674905,-480.0,0.00019726,2]
[373456044,1753014674914,-480.0,0.00019726,2]
[373456045,1753014674923,-663.81,0.00019726,2]
[373456046,1753014674931,-603.17,0.00019726,2]
[373456047,1753014674940,-885.52,0.00019726,2]
[373456048,1753014674949,-508.26,0.00019726,2]
[373456049,1753014674958,-646.27,0.00019726,2]
[373456050,1753014674968,-741.47,0.00019726,2]
[373456051,1753014674977,-650.94,0.00019726,2]
[373456052,1753014674987,-480.0,0.00019726,2]
[373456053,1753014674997,-2188.28,0.00019726,2]
[373456054,1753014675006,-480.0,0.00019726,2]
[373456055,1753014675015,-3039.93,0.00019726,2]
[373456056,1753014675024,-480.0,0.00019726,2]
[373456057,1753014675033,-699.61,0.00019726,2]
[373456058,1753014675042,-540.27,0.00019726,2]
[373456059,1753014675051,-480.0,0.00019726,2]
[373456060,1753014675060,-911.93,0.00019726,2]
[373456061,1753014675070,-480.0,0.00019726,2]
[373456062,1753014675080,-480.0,0.00019726,2]
[373456063,1753014675089,-480.0,0.00019726,2]
[373456064,1753014675099,-480.0,0.00019726,2]
[373456065,1753014675109,-813.91,0.00019726,2]
[373456066,1753014675118,-480.0,0.00019726,2]
[373456067,1753014675127,-652.74,0.00019726,2]
[373456068,1753014675136,-679.68,0.00019726,2]
[373456069,1753014675147,-480.0,0.00019726,2]
[373456070,1753014675157,-1671.03,0.00019726,2]
[373456071,1753014675167,-480.0,0.00019726,2]
[373456072,1753014675176,-480.0,0.00019726,2]
[373456073,1753014675187,-583.7,0.00019726,2]
[373456074,1753014675197,-620.3,0.00019726,2]
[373456075,1753014675206,-613.99124501,0.00019726,2]
[373456076,1753014675216,-480.0,0.00019726,2]
[373456077,1753014675226,-401.68,0.00019726,2]
[373456078,1753014675236,-480.0,0.00019726,2]
[373456079,1753014675245,-480.0,0.00019726,2]
[373456080,1753014675255,-480.0,0.00019726,2]
[373456081,1753014675264,-610.89,0.00019726,2]
[373456082,1753014675274,-480.0,0.00019726,2]
[373456083,1753014675283,-768.41,0.00019726,2]
[373456084,1753014675293,-765.32,0.00019726,2]
[373456085,1753014675304,-480.0,0.00019726,2]
[373456086,1753014675314,-480.0,0.00019726,2]
[373456087,1753014675324,-480.0,0.00019726,2]
[373456088,1753014675334,-480.0,0.00019726,2]
[373456089,1753014675344,-575.87,0.00019726,2]
[373456090,1753014675354,-983.09,0.00019726,2]
[373456091,1753014675364,-593.69,0.00019726,2]
[373456092,1753014675373,-832.57,0.00019726,2]
[373456093,1753014675383,-480.0,0.00019726,2]
[373456094,1753014675393,-480.0,0.00019726,2]
[373456095,1753014675403,-480.0,0.00019726,2]
[373456096,1753014675412,-480.0,0.00019726,2]
[373456097,1753014675422,-480.0,0.00019726,2]
[373456098,1753014675432,-737.5,0.00019726,2]
[373456099,1753014675441,-480.0,0.00019726,2]
[373456100,1753014675451,-932.28,0.00019726,2]
[373456101,1753014675460,-480.0,0.00019726,2]
[373456102,1753014675470,-480.0,0.00019726,2]
[373456103,1753014675479,-480.0,0.00019726,2]
[373456104,1753014675489,-510.1,0.00019726,2]
[373456105,1753014675499,-480.0,0.00019726,2]
[373456106,1753014675509,-480.0,0.00019726,2]
[373456107,1753014675518,-480.0,0.00019726,2]
[373456108,1753014675528,-311.86403756,0.00019726,2]
[373456109,1753014675538,-480.0,0.00019726,2]
[373456110,1753014675547,-836.95,0.00019726,2]
[373456111,1753014675557,-480.0,0.00019726,2]
[373456112,1753014675567,-480.0,0.00019726,2]
[373456113,1753014675577,-480.0,0.00019726,2]
[373456114,1753014675586,-480.0,0.00019726,2]
[373456115,1753014675596,-480.0,0.00019726,2]
[373456116,1753014675606,-870.11,0.00019726,2]
[373456117,1753014675615,-511.37,0.00019726,2]
[373456118,1753014675625,-695.17,0.00019726,2]
[373456119,1753014675635,-480.0,0.00019726,2]
[373456120,1753014675649,-480.0,0.00019726,2]
[373456121,1753014675659,-480.0,0.00019726,2]
[373456122,1753014675668,-820.22,0.00019726,2]
[373456123,1753014675678,-480.0,0.00019726,2]
[373456124,1753014675689,-480.0,0.00019726,2]
[373456125,1753014675699,-480.0,0.00019726,2]
[373456126,1753014675709,-751.71,0.00019726,2]
[373456127,1753014675719,-1085.44,0.00019726,2]
[373456128,1753014675730,-480.0,0.00019726,2]
[373456129,1753014675740,-480.0,0.00019726,2]
[373456130,1753014675750,-543.84,0.00019726,2]
[373456131,1753014675760,-917.97,0.00019726,2]
[373456132,1753014675770,-480.0,0.00019726,2]
[373456133,1753014675780,-600.52,0.00019726,2]
[373456134,1753014675789,-612.49,0.00019726,2]
[373456135,1753014675799,-1202.26,0.00019726,2]
[373456136,1753014675810,-1497.64,0.00019726,2]
[373456137,1753014675820,-480.0,0.00019726,2]
[373456138,1753014675830,-480.0,0.00019726,2]
[373456139,1753014675839,-480.0,0.00019726,2]
[373456140,1753014675850,-480.0,0.00019726,2]
[373456141,1753014675860,-480.0,0.00019726,2]
[373456142,1753014675870,-642.04,0.00019726,2]
[373456143,1753014675880,-520.78,0.00019726,2]
[373456144,1753014675892,-480.0,0.00019726,2]
[373456145,1753014675903,-496.41,0.00019726,2]
[373456146,1753014675912,-570.45,0.00019726,2]
[373456147,1753014675922,-480.0,0.00019726,2]
[373456148,1753014675932,-818.44,0.00019726,2]
[373456149,1753014675942,-151.0,0.00019726,2]
[373456150,1753014675952,-151.0,0.00019726,2]
[373456151,1753014675963,-480.0,0.00019726,2]
[373456152,1753014675972,-761.66,0.00019726,2]
[373456153,1753014675982,-480.0,0.00019726,2]
[373456154,1753014675994,-480.0,0.00019726,2]
[373456155,1753014676004,-480.0,0.00019726,2]
[373456156,1753014676014,-2352.9,0.00019726,2]
[373456157,1753014676024,-480.0,0.00019726,2]
[373456158,1753014676034,-480.0,0.00019726,2]
[373456159,1753014676043,-479.345417,0.00019726,2]
[373456160,1753014676054,-480.0,0.00019726,2]
[373456161,1753014676064,-317.15140306,0.00019726,2]
[373456162,1753014676074,-151.0,0.00019726,2]
[373456163,1753014676085,-1713.86,0.00019726,2]
[373456164,1753014676095,-151.0,0.00019726,2]
[373456165,1753014676105,-783.08,0.00019726,2]
[373456166,1753014676115,-681.27,0.00019726,2]
[373456167,1753014676124,-151.0,0.00019726,2]
[373456168,1753014676134,-480.0,0.00019726,2]
[373456169,1753014676145,-1257.01,0.00019726,2]
[373456170,1753014676153,-480.0,0.00019726,2]
[373456171,1753014676162,-785.79,0.00019726,2]
[373456172,1753014676170,-529.78986787,0.00019726,2]
[373456173,1753014676178,-593.27,0.00019726,2]
[373456174,1753014676188,-480.0,0.00019726,2]
[373456175,1753014676198,-823.1,0.00019726,2]
[373456176,1753014676209,-151.0,0.00019726,2]
[373456177,1753014676219,-151.0,0.00019726,2]
[373456178,1753014676229,-1245.21,0.00019726,2]
[373456179,1753014676239,-480.0,0.00019726,2]
[373456180,1753014676255,-254.55608336,0.00019726,2]
[373456181,1753014676265,-151.0,0.00019726,2]
[373456182,1753014676275,-480.0,0.00019726,2]
[373456183,1753014676285,-480.0,0.00019726,2]
[373456184,1753014676295,-480.0,0.00019726,2]
[373456185,1753014676304,-480.0,0.00019726,2]
[373456186,1753014676314,-480.0,0.00019726,2]
[373456187,1753014676323,-480.04,0.00019726,2]
[373456188,1753014676333,-153.482436,0.00019726,2]
[373456189,1753014676342,-480.0,0.00019726,2]
[373456190,1753014676352,-480.0,0.00019726,2]
[373456191,1753014676362,-662.76,0.00019726,2]
[373456192,1753014676372,-719.41,0.00019726,2]
[373456193,1753014676381,-480.0,0.00019726,2]
[373456194,1753014676391,-738.09,0.00019726,2]
[373456195,1753014676401,-480.0,0.00019726,2]
[373456196,1753014676410,-724.27,0.00019726,2]
[373456197,1753014676420,-480.0,0.00019726,2]
[373456198,1753014676430,-480.0,0.00019726,2]
[373456199,1753014676440,-733.91,0.00019726,2]
[373456200,1753014676450,-467.22,0.00019726,2]
[373456201,1753014676460,-480.0,0.00019726,2]
[373456202,1753014676469,-647.33,0.00019726,2]
[373456203,1753014676479,-480.0,0.00019726,2]
[373456204,1753014676488,-731.29,0.00019726,2]
[373456205,1753014676498,-1454.54,0.00019726,2]
[373456206,1753014676508,-480.0,0.00019726,2]
[373456207,1753014676517,-797.39,0.00019726,2]
[373456208,1753014676527,-480.0,0.00019726,2]
[373456209,1753014676537,-151.0,0.00019726,2]
[373456210,1753014676547,-480.0,0.00019726,2]
[373456211,1753014676557,-599.98,0.00019726,2]
[373456212,1753014676567,-480.0,0.00019726,2]
[373456213,1753014676577,-255.301572,0.00019726,2]
[373456214,1753014676586,-1373.77,0.00019726,2]
[373456215,1753014676595,-480.0,0.00019726,2]
[373456216,1753014676606,-480.0,0.00019726,2]
[373456217,1753014676618,-480.0,0.00019726,2]
[373456218,1753014676628,-151.0,0.00019726,2]
[373456219,1753014676638,-480.0,0.00019726,2]
[373456220,1753014676652,-2330.59,0.00019726,2]
[373456221,1753014676662,-793.43,0.00019726,2]
[373456222,1753014676672,-480.0,0.00019726,2]
[373456223,1753014676683,-453.68,0.00019726,2]
[373456224,1753014676693,-2644.46,0.00019726,2]
[373456225,1753014676702,-480.0,0.00019726,2]
[373456226,1753014676712,-6377.84,0.00019726,2]
[373456227,1753014676722,-480.0,0.00019726,2]
[373456228,1753014676733,-480.0,0.00019726,2]
[373456229,1753014676743,-480.0,0.00019726,2]
[373456230,1753014676753,-816.21,0.00019726,2]
[373456231,1753014676763,-865.56,0.00019726,2]
[373456232,1753014676774,-480.0,0.00019726,2]
[373456233,1753014676784,-480.0,0.00019726,2]
[373456234,1753014676793,-379.36439227,0.00019726,2]
[373456235,1753014676804,-205.417696,0.00019726,2]
[373456236,1753014676817,-480.0,0.00019726,2]
[373456237,1753014676831,-480.0,0.00019726,2]
[373456238,1753014676842,-205.417696,0.00019726,2]
[373456239,1753014676852,-991.22,0.00019726,2]
[373456240,1753014676863,-803.64,0.00019726,2]
[373456241,1753014676873,-480.0,0.00019726,2]
[373456242,1753014676883,-480.0,0.00019726,2]
[373456243,1753014676894,-669.29,0.00019726,2]
[373456244,1753014676903,-2749.41,0.00019726,2]
[373456245,1753014676913,-480.0,0.00019726,2]
[373456246,1753014676923,-480.0,0.00019726,2]
[373456247,1753014676934,-480.0,0.00019726,2]
[373456248,1753014676943,-480.0,0.00019726,2]
[373456249,1753014676954,-371.712937,0.00019726,2]
[373456250,1753014676963,-1056.65,0.00019726,2]
[373456251,1753014676973,-480.0,0.00019726,2]
[373456252,1753014676982,-371.712937,0.00019726,2]
[373456253,1753014676992,-480.0,0.00019726,2]
[373456254,1753014677002,-480.0,0.00019726,2]
[373456255,1753014677012,-480.0,0.00019726,2]
[373456256,1753014677021,-1172.66,0.00019726,2]
[373456257,1753014677031,-516.78,0.00019726,2]
[373456258,1753014677040,-480.0,0.00019726,2]
[373456259,1753014677050,-652.96,0.00019726,2]
[373456260,1753014677059,-2043.43,0.00019726,2]
[373456261,1753014677069,-480.0,0.00019726,2]
[373456262,1753014677078,-480.0,0.00019726,2]
[373456263,1753014677088,-480.0,0.00019726,2]
[373456264,1753014677098,-2088.09,0.00019726,2]
[373456265,1753014677107,-480.0,0.00019726,2]
[373456266,1753014677117,-649.88,0.00019726,2]
[373456267,1753014677126,-303.86,0.00019726,2]
[373456268,1753014677136,-992.75,0.00019726,2]
[373456269,1753014677148,-337.29149013,0.00019726,2]
[373456270,1753014677158,-1042.02,0.00019726,2]
[373456271,1753014677167,-1426.32,0.00019726,2]
[373456272,1753014677177,-480.0,0.00019726,2]
[373456273,1753014677186,-480.0,0.00019726,2]
[373456274,1753014677198,-947.24,0.00019726,2]
[373456275,1753014677216,-1077.74,0.00019726,2]
[373456276,1753014677227,-2222.89,0.00019726,2]
[373456277,1753014677236,-806.02,0.00019726,2]
[373456278,1753014677246,-4000.2,0.00019726,2]
[373456279,1753014677255,-3738.98,0.00019726,2]
[373456280,1753014677264,-736.85,0.00019726,2]
[373456281,1753014677274,-836.43,0.00019726,2]
[373456282,1753014677284,-734.26,0.00019726,2]
[373456283,1753014677294,-618.09,0.00019726,2]
[373456284,1753014677304,-480.0,0.00019726,2]
[373456285,1753014677321,-1581.14,0.00019726,2]
[373456286,1753014677332,-5653.96,0.00019726,2]
[373456287,1753014677342,-520.0,0.00019726,2]
[373456288,1753014677352,-1818.28,0.00019726,2]
[373456289,1753014677361,-1605.03,0.00019726,2]
[373456290,1753014677373,-2210.19,0.00019726,2]
[373456291,1753014677384,-626.59,0.00019726,2]
[373456292,1753014677396,-314.355759,0.00019726,2]
[373456293,1753014677406,-1392.17,0.00019726,2]
[373456294,1753014677416,-480.0,0.00019726,2]
[373456295,1753014677426,-1255.43,0.00019726,2]
[373456296,1753014677622,-646.182708,0.00019726,2]
[373456297,1753014677642,-480.0,0.00019726,2]
[373456298,1753014677658,-480.0,0.00019726,2]
[373456299,1753014677667,-314.355759,0.00019726,2]
[373456300,1753014677677,-151.0,0.00019726,2]
[373456301,1753014677688,-1424.21,0.00019726,2]
[373456302,1753014677697,-254.518911,0.00019726,2]
[373456303,1753014677707,-480.0,0.00019726,2]
[373456304,1753014677716,-646.182708,0.00019726,2]
[373456305,1753014677726,-1719.33,0.00019726,2]
[373456306,1753014677737,-151.0,0.00019726,2]
[373456307,1753014677746,-480.0,0.00019726,2]
[373456308,1753014677756,-1200.11,0.00019726,2]
[373456309,1753014677765,-1523.7,0.00019726,2]
[373456310,1753014677775,-480.0,0.00019726,2]
[373456311,1753014677784,-480.0,0.00019726,2]
[373456312,1753014677794,-480.0,0.00019726,2]
[373456313,1753014677804,-151.0,0.00019726,2]
[373456314,1753014677814,-480.0,0.00019726,2]
[373456315,1753014677824,-884.39,0.00019726,2]
[373456316,1753014677835,-151.0,0.00019726,2]
[373456317,1753014677845,-722.15,0.00019726,2]
[373456318,1753014677855,-625.78,0.00019726,2]
[373456319,1753014677864,-1757.85,0.00019726,2]
[373456320,1753014677874,-782.86,0.00019726,2]
[373456321,1753014677883,-1726.54,0.00019726,2]
[373456322,1753014677897,-820.43,0.00019726,2]
[373456323,1753014677906,-480.0,0.00019726,2]
[373456324,1753014677916,-1010.01,0.00019726,2]
[373456325,1753014677925,-480.0,0.00019726,2]
[373456326,1753014677935,-505.22,0.00019726,2]
[373456327,1753014677945,-480.0,0.00019726,2]
[373456328,1753014677954,-480.0,0.00019726,2]
[373456329,1753014677964,-772.32,0.00019726,2]
[373456330,1753014677974,-480.0,0.00019726,2]
[373456331,1753014677984,-480.0,0.00019726,2]
[373456332,1753014677994,-2258.72,0.00019726,2]
[373456333,1753014678004,-480.0,0.00019726,2]
[373456334,1753014678014,-480.0,0.00019726,2]
[373456335,1753014678024,-1025.46,0.00019726,2]
[373456336,1753014678035,-513.2,0.00019726,2]
[373456337,1753014678045,-1424.86,0.00019726,2]
[373456338,1753014678054,-814.33,0.00019726,2]
[373456339,1753014678064,-1595.03,0.00019726,2]
[373456340,1753014678074,-3370.07,0.00019726,2]
[373456341,1753014678084,-2379.81,0.00019726,2]
[373456342,1753014678093,-683.76,0.00019726,2]
[373456343,1753014678103,-480.0,0.00019726,2]
[373456344,1753014678112,-480.0,0.00019726,2]
[373456345,1753014678122,-480.0,0.00019726,2]
[373456346,1753014678131,-4765.78,0.00019726,2]
[373456347,1753014678141,-536.94,0.00019726,2]
[373456348,1753014678153,-480.0,0.00019726,2]
[373456349,1753014678163,-480.0,0.00019726,2]
[373456350,1753014678172,-1771.29,0.00019726,2]
[373456351,1753014678182,-950.1,0.00019726,2]
[373456352,1753014678191,-480.0,0.00019726,2]
[373456353,1753014678201,-480.0,0.00019726,2]
[373456354,1753014678211,-480.0,0.00019726,2]
[373456355,1753014678221,-1361.55,0.00019726,2]
[373456356,1753014678232,-1848.06,0.00019726,2]
[373456357,1753014678242,-925.91,0.00019726,2]
[373456358,1753014678252,-637.06,0.00019726,2]
[373456359,1753014678262,-838.76,0.00019726,2]
[373456360,1753014678272,-1312.93,0.00019726,2]
[373456361,1753014678282,-4317.78,0.00019726,2]
[373456362,1753014678291,-756.37,0.00019726,2]
[373456363,1753014678301,-9271.75,0.00019726,2]
[373456364,1753014678311,-480.0,0.00019726,2]
[373456365,1753014678320,-1431.74,0.00019726,2]
[373456366,1753014678329,-480.0,0.00019726,2]
[373456367,1753014678339,-1470.98,0.00019726,2]
[373456368,1753014678349,-4009.68,0.00019726,2]
[373456369,1753014678359,-1530.7,0.00019726,2]
[373456370,1753014678368,-789.2,0.00019726,2]
[373456371,1753014678378,-692.42,0.00019726,2]
[373456372,1753014678387,-863.3,0.00019726,2]
[373456373,1753014678398,-219.82383937,0.00019726,2]
[373456374,1753014678408,-1176.53,0.00019726,2]
[373456375,1753014678418,-841.86,0.00019726,2]
[373456376,1753014678428,-480.0,0.00019726,2]
[373456377,1753014678438,-1432.34,0.00019726,2]
[373456378,1753014678448,-838.11,0.00019726,2]
[373456379,1753014678458,-151.0,0.00019726,2]
[373456380,1753014678468,-698.77,0.00019726,2]
[373456381,1753014678478,-480.0,0.00019726,2]
[373456382,1753014678488,-654.3,0.00019726,2]
[373456383,1753014678498,-480.0,0.00019726,2]
[373456384,1753014678508,-565.239474,0.00019726,2]
[373456385,1753014678518,-937.24,0.00019726,2]
[373456386,1753014678527,-969.32,0.00019726,2]
[373456387,1753014678537,-480.0,0.00019726,2]
[373456388,1753014678547,-2155.04,0.00019726,2]
[373456389,1753014678556,-565.239474,0.00019726,2]
[373456390,1753014678566,-2293.75,0.00019726,2]
[373456391,1753014678575,-480.0,0.00019726,2]
[373456392,1753014678585,-1679.97,0.00019726,2]
[373456393,1753014678595,-1649.28,0.00019726,2]
[373456394,1753014678605,-481.48,0.00019726,2]
[373456395,1753014678615,-4949.4,0.00019726,2]
[373456396,1753014678627,-480.0,0.00019726,2]
[373456397,1753014678637,-480.0,0.00019726,2]
[373456398,1753014678648,-780.69,0.00019726,2]
[373456399,1753014678660,-1361.96,0.00019726,2]
[373456400,1753014678670,-1646.77,0.00019726,2]
[373456401,1753014678679,-550.14,0.00019726,2]
[373456402,1753014678689,-787.28,0.00019726,2]
[373456403,1753014678699,-583.71,0.00019726,2]
[373456404,1753014678709,-1739.9,0.00019726,2]
[373456405,1753014678719,-480.0,0.00019726,2]
[373456406,1753014678728,-2239.25,0.00019726,2]
[373456407,1753014678738,-488.08,0.00019726,2]
[373456408,1753014678748,-1000.87,0.00019726,2]
[373456409,1753014678758,-612.5,0.00019726,2]
[373456410,1753014678768,-975.55,0.00019726,2]
[373456411,1753014678777,-1266.74,0.00019726,2]
[373456412,1753014678787,-1536.88,0.00019726,2]
[373456413,1753014678796,-3466.23,0.00019726,2]
[373456414,1753014678805,-491.87,0.00019726,2]
[373456415,1753014678815,-480.0,0.00019726,2]
[373456416,1753014678824,-480.0,0.00019726,2]
[373456417,1753014678834,-870.17,0.00019726,2]
[373456418,1753014678844,-480.0,0.00019726,2]
[373456419,1753014678853,-1120.17,0.00019726,2]
[373456420,1753014678863,-1066.19,0.00019726,2]
[373456421,1753014678873,-480.0,0.00019726,2]
[373456422,1753014678882,-1692.83,0.00019726,2]
[373456423,1753014678892,-535.05176603,0.00019726,2]
[373456424,1753014678903,-1127.39,0.00019726,2]
[373456425,1753014678913,-480.0,0.00019726,2]
[373456426,1753014678922,-1309.68,0.00019726,2]
[373456427,1753014678932,-480.0,0.00019726,2]
[373456428,1753014678941,-2168.91,0.00019726,2]
[373456429,1753014678951,-1586.53,0.00019726,2]
[373456430,1753014678960,-5167.59,0.00019726,2]
[373456431,1753014678969,-480.0,0.00019726,2]
[373456432,1753014678979,-2843.64,0.00019726,2]
[373456433,1753014678988,-4167.7,0.00019726,2]
[373456434,1753014678997,-1125.81,0.00019726,2]
[373456435,1753014679007,-1714.93,0.00019726,2]
[373456436,1753014679016,-480.0,0.00019726,2]
[373456437,1753014679025,-480.0,0.00019726,2]
[373456438,1753014679035,-485.89,0.00019726,2]
[373456439,1753014679044,-728.46,0.00019726,2]
[373456440,1753014679053,-938.16,0.00019726,2]
[373456441,1753014679063,-480.0,0.00019726,2]
[373456442,1753014679072,-151.0,0.00019726,2]
[373456443,1753014679081,-480.0,0.00019726,2]
[373456444,1753014679090,-675.77,0.00019726,2]
[373456445,1753014679100,-226.80565254,0.00019726,2]
[373456446,1753014679109,-921.94,0.00019726,2]
[373456447,1753014679118,-329.98449923,0.00019726,2]
[373456448,1753014679128,-151.0,0.00019726,2]
[373456449,1753014679138,-480.0,0.00019726,2]
[373456450,1753014679151,-3135.79,0.00019726,2]
[373456451,1753014679161,-583.29,0.00019726,2]
[373456452,1753014679171,-1176.04,0.00019726,2]
[373456453,1753014679181,-480.0,0.00019726,2]
[373456454,1753014679191,-480.0,0.00019726,2]
[373456455,1753014679201,-1139.14,0.00019726,2]
[373456456,1753014679211,-156.587,0.00019726,2]
[373456457,1753014679221,-155.45930866,0.00019735,2]
[373456458,1753014679231,-1415.97731019,0.00019735,2]
[373456459,1753014679240,-260.49075285,0.00019735,4]
[373456460,1753014679250,-260.49075285,0.00019735,4]
[373456461,1753014679259,-260.49075285,0.00019735,4]
[373456462,1753014679268,-260.49075285,0.00019735,4]
[373456463,1753014679278,-260.49075285,0.00019735,4]
[373456464,1753014679287,-260.49075285,0.00019735,4]
[373456465,1753014679297,-260.49075285,0.00019735,4]
[373456466,1753014679307,-260.49075285,0.00019735,4]
[373456467,1753014679317,-260.49075285,0.00019735,4]
[373456468,1753014679326,-260.49075285,0.00019735,4]
[373456469,1753014679336,-260.49075285,0.00019735,4]
[373456470,1753014679345,-260.49075285,0.00019735,4]
[373456471,1753014679355,-260.49075285,0.00019735,4]
[373456472,1753014679364,-260.49075285,0.00019735,4]
[373456473,1753014679374,-260.49075285,0.00019735,4]
[373456474,1753014679383,-260.49075285,0.00019735,4]
[373456475,1753014679392,-260.49075285,0.00019735,4]
[373456476,1753014679404,-260.49075285,0.00019735,4]
[373456477,1753014679413,-260.49075285,0.00019735,4]
[373456478,1753014679423,-260.49,0.00019735,4]
[373456479,1753014679433,-199.51274429,0.00019735,4]
[373456480,1753014679443,-199.51274429,0.00019735,4]
[373456481,1753014679452,-199.51274429,0.00019735,4]
[373456482,1753014679462,-199.51274429,0.00019735,4]
[373456483,1753014679472,-199.51274429,0.00019735,4]
[373456484,1753014679482,-199.51274429,0.00019735,4]
[373456485,1753014679493,-199.51274429,0.00019735,4]
[373456486,1753014679503,-199.51274429,0.00019735,4]
[373456487,1753014679513,-199.51274429,0.00019735,4]
[373456488,1753014679523,-199.51274429,0.00019735,4]
[373456489,1753014679532,-199.51274429,0.00019735,4]
[373456490,1753014679542,-199.51274429,0.00019735,4]
[373456491,1753014679552,-199.51274429,0.00019735,4]
[373456492,1753014679562,-199.51274429,0.00019735,4]
[373456493,1753014679572,-199.51274429,0.00019735,4]
[373456494,1753014679582,-199.51274429,0.00019735,4]
[373456495,1753014679591,-199.51274429,0.00019735,4]
[373456496,1753014679601,-199.51274429,0.00019735,4]
[373456497,1753014679610,-199.51274429,0.00019735,4]
[373456498,1753014679621,-199.51,0.00019735,4]
[373456499,1753014679631,-323.11296401,0.00019735,4]
[373456500,1753014679640,-323.11296401,0.00019735,4]
[373456501,1753014679653,-323.11296401,0.00019735,4]
[373456502,1753014679662,-323.11296401,0.00019735,4]
[373456503,1753014679671,-323.11296401,0.00019735,4]
[373456504,1753014679681,-323.11296401,0.00019735,4]
[373456505,1753014679692,-323.11296401,0.00019735,4]
[373456506,1753014679702,-323.11296401,0.00019735,4]
[373456507,1753014679712,-323.11296401,0.00019735,4]
[373456508,1753014679722,-323.11296401,0.00019735,4]
[373456509,1753014679733,-323.11296401,0.00019735,4]
[373456510,1753014679743,-323.11296401,0.00019735,4]
[373456511,1753014679753,-323.11296401,0.00019735,4]
[373456512,1753014679763,-323.11296401,0.00019735,4]
[373456513,1753014679772,-323.11296401,0.00019735,4]
[373456514,1753014679782,-323.11296401,0.00019735,4]
[373456515,1753014679791,-323.11296401,0.00019735,4]
[373456516,1753014679801,-323.11296401,0.00019735,4]
[373456517,1753014679811,-323.11296401,0.00019735,4]
[373456518,1753014679820,-323.11,0.00019735,4]
[373456519,1753014679830,-300.0,0.00019744,2]
[373456520,1753014679839,-666.0,0.00019744,2]
[373456521,1753014679851,-889.95234,0.0001975,2]
[373456522,1753014679860,-266.93644462,0.00019751,2]
[373456523,1753014679869,-373.24648505,0.00019773,2]
[373456524,1753014679879,-500.0,0.00019799,2]
[373456525,1753014679888,-500.0,0.00019799,2]